Cogmind - Beta 9.3 @@@ ROGUE MODE // 2020.01.05 @ 00:49:56 Player: Klin Result: Destroyed by G-34 Mercenary with Small Laser Performance ------------- Evolutions (0) 0 Regions Visited (1) 200 Robots Destroyed (22) 110 Value Destroyed (570) 570 Prototype IDs (0) 0 Alien Tech Used (0) 0 Bonus (0) 0 TOTAL SCORE: 880 Bonus ------- None Cogmind --------- Core Integrity 0/250 Matter 300/300 Energy 100/100 System Corruption 6% Temperature Cool (6) Movement Flying (120) Ox1 Location -10/Materials Parts ------- > --- POWER (1) -------- (None) > --- PROPULSION (2) --- Flight Unit > --- UTILITY (2) ------ Structural Scanner Core Shielding > --- WEAPON (2) ------- Light Assault Rifle Mining Claw > --- INVENTORY (4) ---- High-capacity Matter Pod (200) Power Shielding Peak State ------------ > --- POWER ------------ Light Ion Engine > --- PROPULSION ------- Aluminum Leg Wheel > --- UTILITY ---------- Heat Sink Structural Scanner > --- WEAPON ----------- Small Laser Small Laser > --- INVENTORY -------- Wheel Wheel Welding Torch [Rating: 7] Favorites ----------- Power Light Ion Engine Engine Light Ion Engine Propulsion Wheel Leg Aluminum Leg Wheel Wheel Flight Unit Flight Unit Utility Structural Scanner Device Structural Scanner Protection Core Shielding Weapon Small Laser Energy Gun Small Laser Ballistic Gun Light Assault Rifle Special Weapon Welding Torch Slashing Weapon Mining Claw Build | -11 -10 ------- Run | Scr Mat Slots Evolved . | . . Power . | . . Propulsion . | . . Utility . | . . Weapon . | . . Parts Attached 34 | 6 28 Power 8 | 1 7 Engine 8 | 1 7 Core . | . . Reactor . | . . Propulsion 12 | 3 9 Treads . | . . Leg 3 | 2 1 Wheel 7 | 1 6 Hover . | . . Flight 2 | . 2 Utility 4 | . 4 Device 3 | . 3 Storage . | . . Processor . | . . Hackware . | . . Protection 1 | . 1 Artifact . | . . Weapon 10 | 2 8 Energy Gun 5 | 2 3 Energy Cannon . | . . Ballistic Gun 3 | . 3 Ballistic Cannon . | . . Launcher . | . . Special Weapon 1 | . 1 Impact Weapon . | . . Slashing Weapon 1 | . 1 Piercing Weapon . | . . Special Melee Weapon . | . . Unidentified Prototypes . | . . Parts Lost 10 | . 10 Power 3 | . 3 Propulsion 3 | . 3 Utility . | . . Weapon 4 | . 4 Highest Loss Streak 5 | . 5 Average Slot Usage (%) 87 | . 87 Engine 10 | . 10 Leg 3 | . 3 Wheel 20 | . 20 Flight 2 | . 2 Device 18 | . 18 Protection 5 | . 5 Energy Gun 14 | . 14 Ballistic Gun 4 | . 4 Slashing Weapon 5 | . 5 Naked Turns 3 | . 3 Heaviest Build 10 | 6 10 Greatest Support 20 | 20 20 Greatest Overweight (x) 1 | . 1 Average Overweight (x) . | . . Largest Inventory Capacity 4 | 4 4 Average Capacity 4 | 4 4 Most Carried 4 | 4 4 Average Carried 2 | 1 2 Final Capacity 4 | 4 4 Final Carried 2 | 2 2 Class Distribution -------------------- 84% | Mutant 15% | Scavenger-Mutant Dominant Class ---------------- Mutant | -10/Materials Resources | -11 -10 ----------- Run | Scr Mat Matter Collected 813 | 256 557 Remotely . | . . Salvage Created 861 | 44 817 Parts 53 | . 53 Haulers Intercepted . | . . Recyclers Shooed 2 | . 2 Parts Field Recycled . | . . Retrieved Matter . | . . Parts Self-Destructed . | . . Prevented . | . . Kills | -11 -10 ------- Run | Scr Mat Combat Hostiles Destroyed 14 | 1 13 Melee 3 | . 3 Guns 10 | 1 9 AOE 1 | . 1 Classes Destroyed 7 | 1 6 Worker 2 | . 2 Builder 1 | . 1 Tunneler 1 | . 1 Recycler 2 | . 2 Operator 1 | . 1 Watcher 1 | . 1 Grunt 14 | 1 13 Best Kill Streak 3 | 1 3 Combat Bots Only 2 | 1 2 Max Kills in Single Turn 2 | 1 2 Gunslinging . | . . Exploded 1 | . 1 Melee 1 | . 1 Uniques/NPCs Destroyed . | . . Combat | -11 -10 -------- Run | Scr Mat Damage Taken 1123 | 88 1035 Core 257 | 12 245 Absorbed by Shields . | . . Core Remaining (%) 95 | 95 . Volleys Fired 73 | 7 66 Largest 2 | 2 2 Hottest 90 | 90 90 Shots Fired 113 | 14 99 Gun 113 | 14 99 Cannon . | . . Launcher . | . . Special . | . . Kinetic 35 | . 35 Thermal 73 | 14 59 Explosive . | . . Electromagnetic 5 | . 5 Robot Hit Streak 8 | 7 8 Robot Miss Streak 5 | 1 5 Penetration Max . | . . Secondary Targets 3 | . 3 Max Gunslinging Chain 1 | . 1 Shots Hit Robots 88 | 11 77 Core Hits 41 | 2 39 Critical Hits . | . . Critical Kills . | . . Critical Parts Destroyed . | . . Melee Attacks 15 | . 15 Impact . | . . Slashing 15 | . 15 Piercing . | . . Sneak Attacks 8 | . 8 Combat Hostiles . | . . Follow-up Attacks . | . . Damage Inflicted 1457 | 129 1328 Guns 701 | 129 572 Cannons . | . . Explosions . | . . Melee 709 | . 709 Ramming 47 | . 47 Kinetic 177 | . 177 Thermal 524 | 129 395 Explosive . | . . Electromagnetic . | . . Impact . | . . Slashing 709 | . 709 Piercing . | . . Highest Corruption 6 | . 6 Average Corruption 5 | . 5 Corruption Purged . | . . Effects 34 | . 34 Message Errors 8 | . 8 Matter Fused 10 | . 10 Heat Flow Errors 3 | . 3 Parts Rejected 1 | . 1 Data Loss (minor) 3 | . 3 Data Loss (major) 1 | . 1 Misfires 2 | . 2 Targeting Errors 3 | . 3 Weapon Failures 3 | . 3 Overload Shots . | . . Overflow Damage 151 | . 151 Projectiles . | . . Explosions . | . . Melee 151 | . 151 Knockbacks . | . . Impact . | . . Kinetic . | . . Secondary . | . . Self-Inflicted Damage 18 | . 18 Shots . | . . Rammed 18 | 1 17 Targets Rammed 20 | 1 19 Kicked 2 | . 2 Crushed . | . . Highest Temperature 332 | 148 332 Average Temperature 106 | 83 113 Received Heat Transfer 600 | 48 552 Effects 1 | . 1 Matter Decay 1 | . 1 Siege Activations . | . . Robots Corrupted . | . . Combat Hostiles . | . . Parts Fried . | . . Impact Corruptions . | . . Robots Melted . | . . Combat Hostiles . | . . Parts Melted 1 | . 1 Heat Transferred 1270 | 335 935 Parts Sabotaged . | . . Parts Stolen . | . . Parts Stripped . | . . Power Chain Reactions . | . . Missiles Intercepted . | . . Alert | -11 -10 ------- Run | Scr Mat Peak Influence 170 | 20 170 Average Influence 54 | 4 61 Maximum Alert Level . | . . Low Security (%) 100 | 100 100 Level 1 . | . . Level 2 . | . . Level 3 . | . . Level 4 . | . . Level 5 . | . . High Security . | . . Max Security . | . . Squads Dispatched 4 | . 4 Investigation 2 | . 2 Extermination . | . . Reinforcement 2 | . 2 Assault . | . . Garrison . | . . Intercept . | . . Construction Impeded . | . . Haulers Reinforced . | . . Stealth | -11 -10 --------- Run | Scr Mat Distress Signals . | . . Communications Jammed . | . . Distress Signals . | . . Times Spotted 27 | 1 26 Peak Tracking Total 3 | 1 3 Tactical Retreats 1 | . 1 Traps | -11 -10 ------- Run | Scr Mat Traps Triggered 1 | . 1 Indirectly . | . . Trap Hack Attempts . | . . Triggered . | . . Disarmed . | . . Reprogrammed . | . . Reused . | . . Traps Extracted . | . . Installed . | . . Triggered . | . . Machines | -11 -10 ---------- Run | Scr Mat Machines Disabled 1 | . 1 Max in Single Turn 1 | . 1 Machines Sabotaged . | . . Garrisons Compromised . | . . Overloaded Fab Kills . | . . Fab Network Shutdowns . | . . Hacking | -11 -10 --------- Run | Scr Mat Machines Accessed 5 | . 5 Terminals 2 | . 2 Fabricators . | . . Repair Stations 1 | . 1 Recycling Units 2 | . 2 Scanalyzers . | . . Garrison Access . | . . Total Hacks 17 | . 17 Successful 9 | . 9 Failed 8 | . 8 Catastrophic . | . . Database Lockouts . | . . Manual . | . . Terminals 8 | . 8 Fabricators . | . . Repair Stations 3 | . 3 Recycling Units 6 | . 6 Scanalyzers . | . . Garrison Access . | . . Terminal Hacks 2 | . 2 Emergency Access Points 1 | . 1 Alert Level 1 | . 1 Fabricator Hacks . | . . Repair Station Hacks 2 | . 2 Scan Component 1 | . 1 Repair 1 | . 1 Recycling Unit Hacks 5 | . 5 Recycle Component 2 | . 2 Process 1 | . 1 Report Inventory 1 | . 1 Retrieve Matter 1 | . 1 Scanalyzer . | . . Garrison Access Hacks . | . . Unauthorized Hacks . | . . Terminals . | . . Fabricators . | . . Repair Stations . | . . Recycling Units . | . . Scanalyzers . | . . Garrison Access . | . . Data Cores Recovered . | . . Used . | . . Hacking Detections 5 | . 5 Full Trace Events 4 | . 4 Feedback Events . | . . Feedback Blocked . | . . Robot Schematics Acquired . | . . Robots Built . | . . Matter . | . . Time . | . . Total Robot Build Rating . | . . Part Schematics Acquired . | . . Parts Built . | . . Matter . | . . Time . | . . Total Part Build Rating . | . . Parts Repaired 1 | . 1 Time 26 | . 26 Parts Recycled 2 | . 2 Recycled Matter 102 | . 102 Retrieved Matter . | . . Retrieved Components . | . . Parts Scanalyzed . | . . Part Schematics Acquired . | . . Parts Damaged . | . . Bothacking | -11 -10 ------------ Run | Scr Mat Used RIF Installer . | . . Robots Hacked . | . . Non-combat . | . . Combat . | . . Robot Hacks Applied . | . . Relay Couplers Released . | . . Robots Rewired . | . . Allies Hacked . | . . Hacks Repelled . | . . Allies | -11 -10 -------- Run | Scr Mat Total Allies . | . . Largest Group . | . . Highest-Rated Group . | . . Highest-Rated Ally . | . . Total Orders . | . . Ally Attacks . | . . Total Damage . | . . Kills . | . . Allies Corrupted . | . . Allies Melted . | . . Intel | -11 -10 ------- Run | Scr Mat Robot Analysis Total . | . . Derelict Logs Recovered . | . . Drone Launches . | . . Drone Recoveries . | . . Exploration | -11 -10 ------------- Run | Scr Mat Turns Passed 1417 | 179 1238 Spaces Moved 1331 | 140 1191 Core 38 | 36 2 Treads . | . . Legs 225 | 103 122 Wheels 862 | 1 861 Hover . | . . Flight 206 | . 206 Fastest Speed 37 | 50 37 Average Speed 79 | 101 77 Slowest Speed 120 | 120 120 Overloaded Moves . | . . Propulsion Burnouts . | . . Robots Hopped . | . . Cave-ins Triggered . | . . Exploration Rate (%) 51 | 11 91 Regions Visited 1 Branch Regions . Pre-discovered Areas . | . . Known Exits Taken . | . . Unknown Exits Taken 1 | 1 . Scrap Searched . | . . Spaces Dug . | . . Terrain Destroyed . | . . Melee . | . . Projectile . | . . AOE . | . . Actions | -11 -10 --------- Run | Scr Mat Total 1548 | 163 1385 Wait 30 | . 30 Move 1330 | 139 1191 Hop . | . . Pick Up 30 | 8 22 Fast Attach 5 | . 5 Attach 20 | 6 14 Detach 1 | 1 . Swap 9 | . 9 Drop 15 | 1 14 Fire 73 | 7 66 Melee 15 | . 15 Ram 12 | . 12 Kick 8 | 1 7 Crush . | . . Escape Stasis . | . . Rewire . | . . Trap . | . . Miscellaneous . | . . Route ------- -11/Scrapyard -10/Materials (discovered 3 exits: [*Mat x2] / [*Min]) History --------- Turn | Location | Event 2 | -11/Scrapyard | Met Revision 17 84 | -11/Scrapyard | Discovered new exit (range 8) 180 | -11/Scrapyard | Entered Materials 314 | -10/Materials | Build established: Mutant 356 | -10/Materials | Lost 5 parts (1p2n2w) 480 | -10/Materials | Discovered new exit (range 5) 566 | -10/Materials | Core integrity fell below 50% 739 | -10/Materials | Discovered new exit (range 12) 776 | -10/Materials | Repaired Wheel 907 | -10/Materials | Lost 3 parts (1p2w) 1350 | -10/Materials | Discovered new exit (range 11) 1395 | -10/Materials | Core integrity fell below 20% 1418 | -10/Materials | Destroyed by G-34 Mercenary with Small Laser Last Messages --------------- System corrupted: Heat flow error (+291). Acquired 15 matter. O-16 Technician: "IFF HANDSHAKE FAILED. SECURING TERMINAL." O-16 Technician uses terminal to summon reinforcements. ALERT: Hostiles spotted, dispatching reinforcements to Terminal M001. O-16 Technician locks terminal. System corrupted: Mining Claw targeting data glitched. O-16 Technician destroyed. System corrupted: Matter fused (-5). EXIT=FOUND K-01 Serf cleans the Material Processor. System corrupted: Lgt. Assault Rifle targeting data glitched. Flight Unit destroyed. Lgt. Ion Engine destroyed. System corrupted: Matter fused (-9). Triggered Explosive Trap. An explosion rips through the floor. G-34 Mercenary destroyed. Acquired 16 matter. [Achievement: First Step to Greatness] Map ----- +----------------------------------------------------+ | =[ #?????????# #?? #???????????????? | | #?????????# ###############????????? | | #?????????# % %% # #????????? | | #?????????# % # #????????? | | %#########??# # " #????????? | | """"%%# #######+### + T #????????? | | """ %%# """ # # # " #????????? | | """" %# """"" # """ # # #????????? | | # """"" # """"" # ########????????? | | + """"" # """"" # #???????????? | | ### # """ # """"" # #???????????? | | #?## ## # """ # #???????????? | | ???# ## # ####+####???????????? | | ???# ########## ## #???????????? | | ???# #????????############ !%* #???????????? | | ???# #???????????????????# #???????????? | | ???# #???????????????????# #???????????? | | ???# #???????????????????# ] #???????????? | | ???# #???????????????????# #???????????? | | ???# #???????????????????###/#######????????? | | ?###+######????????????????#a#?#=T #????????? | | ## #???????????????## ###%! #????????? | | + # ######+########t +* #????????? | | ## # ## ########## | | ?# """ + ##][ ## # | | ?# """ # @ ##][ ## # | | ?# """ #??#####+## g # ## """ # | | ?# """ #?????????# %! ### """"" # | | ?# #?????????# ^[ # """"" # | | ?# #?????????# + """"" # | | ?##########?????????#^* [[[ # """ # | | #### #??????????#^!! """^ [[[ # # | | !* ###????????#*!| """ [[[ # # | | = +????????#!! """ # /# | | #??????????# # # | | +### #??????????# ###+##### | | T #?? ############# ### ### #?# #???? | | #????#?# """ # ## ## #?# #???? | | #??????# """"" + + + ### #???? | | #??????# """"" # # #### #???? | | #??????# """"" + # < #### #???? | | [ #??????# """ ##### + #???? | | #??????# #???#"" ""#########???? | | #??????# #???##"|||"##???????????? | | #??????# #????##"""##????????????? | | ####??????###########?????#####?????????????? | | ????????????????????????????????????????????? | | ????????????????????????????????????????????? | | | | | +----------------------------------------------------+ Best States ------------- Heat Dissipation 35 Energy Generation 10 Energy Capacity 250 Matter Stores 300 Matter Capacity 300 Sight Range 16 Terrain Scan Density 10 Core Shielding 20 Evasion (%) 62 Item Schematics ----------------- None Robot Schematics ------------------ None Fabricated ------------ Nothing Alien Tech Used ----------------- None Achievements -------------- First Step to Greatness Fist Fight One Hack Too Far Part-time Mechanic Storm Trooper Challenges ------------ None Game ------ Seed ImpactPlasmaSteel Manual? 0 Play Time 00:31:09 Cumulative 1.0 hours Start 2020.01.05 @ 00:18:55 End 2020.01.05 @ 00:49:56 Sessions 1 Manual Loads 0 Difficulty Rogue Special Mode None Game No. 2 Rogue 2 Adventurer 0 Explorer 0 Win Type - Total 0 Types 0/0/0/0/0/0/0 Lore% 0 Gallery% 1 Achievement% 2 Wizard Run 0 Options --------- ASCII 0 Keyboard 0 Movement Numpad Keybinds 0 Fullscreen 1 Font 18/SmallcapsGlow Map View 76x50 Tactical HUD 0 Map Filters NONE Filters NONE Steam 1 RUN: 65e8bb45-a850-432a-91d6-46fca998954f